bitfinex-derivatives/quotes_SOLF0:USTF0_20250929
["timestamp","ask_amount","ask_price","bid_price","bid_amount"]
[1759113861108,12.0404,209.68,209.61,7.36]
[1759113867925,66.7409,209.67,209.59,14.05327806]
[1759113868222,7.71,209.65,209.57,8.24015267]
[1759113868921,12.0016,209.62,209.57,0.83015267]
[1759113869117,4.2916,209.62,209.58,7.41]
[1759113869323,7.71,209.61,209.58,7.41]
[1759113871828,7.71,209.61,209.58,21.99185541]
[1759113874932,7.71,209.61,209.58,14.58185541]
[1759113875132,7.71,209.61,209.59,7.41]
[1759113875631,4.2912,209.64,209.59,7.41]
[1759113876229,7.71,209.63,209.59,7.41]
[1759113876525,4.2912,209.64,209.59,7.41]
[1759113876731,4.2912,209.64,209.58,14.3651531]
[1759113876732,4.2912,209.64,209.58,7.41]
[1759113878728,7.71,209.65,209.58,7.41]
[1759113879131,7.71,209.65,209.58,8.80771759]
[1759113880739,7.71,209.68,209.61,7.41]
[1759113881647,12.0004,209.68,209.61,7.41]
[1759113882749,4.2906,209.67,209.61,7.41]
[1759113882946,7.71,209.68,209.61,7.41]
[1759113883350,4.291,209.65,209.61,7.41]
[1759113883548,7.71,209.64,209.57,9.63787026]
[1759113884752,12.0012,209.64,209.57,23.67820752]
[1759113886450,9.10771759,209.69,209.6,7.41]
[1759113887052,4.2903,209.68,209.61,1.39771759]
[1759113887453,7.71,209.67,209.62,7.41]
[1759113887648,13.24832533,209.7,209.63,1.39771759]
[1759113887952,13.24832533,209.7,209.64,7.41]
[1759113888855,4.2895,209.72,209.66,7.41]
[1759113892151,7.71,209.71,209.66,7.41]
[1759113892457,7.71,209.7,209.66,7.41]
[1759113892850,4.2898,209.71,209.66,7.41]
[1759113893251,7.71,209.7,209.66,7.41]
[1759113894852,7.71,209.7,209.65,1.39771759]
[1759113895052,7.71,209.7,209.66,7.45]
[1759113897359,7.85,209.7,209.66,7.45]
[1759113899350,7.85,209.7,209.65,1.39771759]
[1759113899656,7.85,209.7,209.66,7.45]
[1759113900961,7.85,209.74,209.68,7.45]
[1759113901763,7.85,209.78,209.7,7.45]
[1759113902057,7.85,209.76,209.7,7.45]
[1759113902660,12.1387,209.76,209.7,7.45]
[1759113902957,7.85,209.76,209.69,1.39771759]
[1759113903162,7.85,209.76,209.67,7.45]
[1759113903163,7.85,209.76,209.67,8.84771759]
[1759113904453,4.2894,209.72,209.67,7.45]
[1759113904659,7.85,209.71,209.67,7.45]
[1759113904865,7.85,209.71,209.65,1.39771759]
[1759113905461,7.85,209.71,209.66,7.45]
[1759113906061,7.85,209.71,209.65,1.39771759]
[1759113906255,7.85,209.71,209.66,7.45]
[1759113906458,7.85,209.71,209.65,1.39771759]
[1759113906657,12.139,209.74,209.68,7.45]
[1759113906864,7.85,209.74,209.69,1.39771759]
[1759113907166,7.85,209.74,209.7,7.45]
[1759113907768,7.85,209.74,209.69,1.39771759]
[1759113907971,7.85,209.74,209.7,7.45]
[1759113908170,7.85,209.74,209.69,1.39771759]
[1759113908566,7.85,209.74,209.7,7.45]
[1759113909474,4.2886,209.76,209.7,7.45]
[1759113909665,4.289,209.75,209.7,7.45]
[1759113910069,7.85,209.74,209.7,7.45]
[1759113910465,4.289,209.75,209.7,7.45]
[1759113910668,7.85,209.74,209.7,7.45]
[1759113911172,7.85,209.73,209.64,1.39771759]
[1759113911369,7.85,209.71,209.63,7.45]
[1759113911565,1.39771759,209.7,209.63,7.45]
[1759113911768,7.85,209.69,209.6,34.89771759]
[1759113912472,7.85,209.69,209.62,1.39771759]
[1759113912671,7.85,209.69,209.61,7.65]
[1759113912863,7.85,209.69,209.62,1.39771759]
[1759113915569,4.2902,209.68,209.61,7.65]
[1759113915766,5.68791759,209.68,209.6,33.5]
[1759113915969,7.58,209.67,209.6,33.5]
[1759113916170,7.58,209.67,209.6,41.15]
[1759113916675,7.58,209.67,209.61,1.39771759]
[1759113917673,7.58,209.67,209.61,5.68921759]
[1759113918875,7.58,209.67,209.61,4.2915]
[1759113919283,7.58,209.67,209.6,42.54771759]
[1759113919479,7.58,209.66,209.6,42.54771759]
[1759113920976,7.58,209.66,209.6,7.65]
[1759113923183,7.58,209.66,209.59,122.48971759]
[1759113923378,7.58,209.66,209.59,130.13971759]
[1759113924178,7.4,209.65,209.59,116.8]
[1759113925179,7.4,209.65,209.59,118.19771759]
[1759113925378,7.4,209.69,209.61,1.39771759]
[1759113926587,7.4,209.69,209.61,5.68931759]
[1759113927881,7.4,209.69,209.62,11.9813]
[1759113928089,7.4,209.69,209.63,1.39771759]
[1759113928582,7.4,209.69,209.63,5.68881759]
[1759113928987,7.4,209.69,209.64,7.69]
[1759113929187,1.39771759,209.73,209.65,7.69]
[1759113929188,7.4,209.72,209.65,7.69]
[1759113929384,7.4,209.72,209.65,9.08771759]
[1759113930591,7.4,209.72,209.65,13.37841759]
[1759113931292,7.4,209.72,209.67,5.68811759]
[1759113931789,7.4,209.72,209.68,7.69]
[1759113932187,7.4,209.72,209.67,5.68811759]
[1759113932381,7.4,209.72,209.68,7.69]
[1759113934989,7.4,209.72,209.67,5.68811759]
[1759113935193,7.4,209.76,209.68,11.9801]
[1759113935394,7.4,209.76,209.69,1.39771759]
[1759113936793,4.2888,209.76,209.68,11.9801]
[1759113937094,7.4,209.75,209.68,7.69]
[1759113938695,11.689,209.75,209.68,7.69]
[1759113940094,7.4,209.75,209.68,7.69]
[1759113941694,7.4,209.75,209.68,11.9801]
[1759113948199,7.4,209.79,209.72,4.2894]
[1759113948398,11.6875,209.82,209.73,7.69]
[1759113948798,11.6875,209.82,209.73,11.9791]
[1759113949502,7.4,209.82,209.73,9.8718348]
[1759113949698,7.4,209.82,209.74,7.69]
[1759113952807,7.4,209.83,209.71,11.9796]
[1759113953504,66.6874,209.84,209.71,11.9796]
[1759113953804,4.5430689,209.83,209.71,11.9796]
[1759113954004,7.51,209.83,209.71,11.9796]
[1759113954307,66.6874,209.84,209.71,11.9796]
[1759113954501,7.51,209.83,209.71,11.9796]
[1759113954703,7.51,209.79,209.71,11.9796]
[1759113955611,7.51,209.8,209.65,9.7518348]
[1759113955901,7.51,209.78,209.66,7.57]
[1759113956410,7.51,209.72,209.65,4.2908]
[1759113956598,7.51,209.72,209.65,11.8608]
[1759113959204,7.51,209.76,209.67,7.57]
[1759113960213,66.6814,209.86,209.73,4.2892]
[1759113960413,7.51,209.81,209.74,7.57]
[1759113961216,7.51,209.81,209.75,4.2888]
[1759113963817,7.51,209.81,209.74,7.57]
[1759113964022,7.51,209.8,209.69,7.57]
[1759113964526,7.51,209.8,209.69,11.8598]
[1759113965224,7.51,209.8,209.69,7.57]
[1759113965528,7.51,209.8,209.7,7.57]
[1759113966219,66.6936,209.82,209.7,11.8598]
[1759113966721,7.51,209.77,209.7,7.57]
[1759113967320,7.51,209.77,209.7,11.8598]
[1759113967526,7.51,209.83,209.71,7.57]
[1759113967918,7.51,209.83,209.73,7.57]
[1759113968114,11.7972,209.83,209.73,11.8591]
[1759113968319,11.7972,209.83,209.73,7.57]
[1759113969619,11.7972,209.83,209.74,4.2888]
[1759113969926,11.7972,209.83,209.73,7.57]
[1759113970926,7.51,209.83,209.78,7.57]
[1759113971130,7.51,209.87,209.78,7.57]
[1759113973326,7.51,209.87,209.79,7.68]
[1759113974626,7.51,209.87,209.81,4.2876]
[1759113975023,7.51,209.87,209.79,7.68]
[1759113975421,4.2862,209.88,209.79,11.968]
[1759113975627,7.61,209.87,209.79,11.968]
[1759113975824,4.2862,209.88,209.79,11.968]
[1759113976032,7.61,209.87,209.79,11.968]
[1759113980232,7.61,209.87,209.79,7.68]
[1759113982835,11.8965,209.87,209.79,7.68]
[1759113983537,7.61,209.87,209.76,116.62]
[1759113983738,2.1818348,209.88,209.76,116.62]
[1759113984332,7.34,209.84,209.76,120.9084]
[1759113985436,4.2872,209.83,209.76,116.62]
[1759113985735,7.34,209.82,209.76,116.62]
[1759113987037,7.34,209.82,209.75,7.68]
[1759113987634,11.6276,209.82,209.75,7.68]
[1759113987836,7.34,209.82,209.75,7.68]
[1759113988032,7.34,209.88,209.75,7.68]
[1759113989341,4.2869,209.85,209.76,4.2884]
[1759113989633,11.6269,209.85,209.76,4.2884]
[1759113990040,11.6269,209.85,209.77,7.44]
[1759113992536,11.6269,209.85,209.77,11.7282]
[1759113992733,11.6263,209.88,209.75,7.44]
[1759113993038,11.6263,209.88,209.78,7.44]
[1759113993237,11.6263,209.88,209.8,7.44]
[1759113993432,7.34,209.88,209.8,7.44]
[1759113993739,23.46796,209.91,209.81,7.44]
[1759113994534,23.46796,209.91,209.85,7.44]
[1759113995737,23.46796,209.91,209.85,21.72163316]
[1759113996038,23.46796,209.91,209.85,7.44]
[1759113996538,23.46796,209.91,209.8,6.4695348]
[1759113996738,23.46796,209.91,209.81,7.44]
[1759113996938,7.34,209.9,209.81,76.68]
[1759113997439,7.34,209.9,209.81,7.44]
[1759113997638,7.34,209.87,209.8,14.20500857]
[1759113997936,66.6748,209.88,209.75,40.9]
[1759113998131,9.5218348,209.86,209.75,40.9]
[1759113998331,66.6838,209.85,209.75,21.68984781]
[1759113998531,9.5218348,209.83,209.75,14.24984781]
[1759113998741,7.34,209.82,209.71,7.44]
[1759113998942,7.34,209.82,209.71,124.04]
[1759113999340,7.34,209.82,209.73,7.44]
[1759113999742,7.34,209.82,209.73,11.729]
[1759114000442,7.34,209.82,209.74,1.39548812]
[1759114001438,11.6276,209.82,209.74,1.39548812]
[1759114001643,11.6276,209.82,209.73,11.729]
[1759114001644,7.34,209.8,209.73,7.44]
[1759114002245,11.6289,209.75,209.68,7.44]
[1759114002950,11.6289,209.75,209.66,29.27548812]
[1759114002951,4.2892,209.73,209.66,1.39548812]
[1759114003152,7.34,209.72,209.66,1.39548812]
[1759114003446,4.2897,209.71,209.65,7.44]
[1759114004750,11.6301,209.69,209.62,1.39548812]
[1759114005545,7.34,209.66,209.59,1.39548812]
[1759114006551,7.34,209.66,209.59,8.83548812]
[1759114008246,7.34,209.66,209.61,1.39548812]
[1759114008448,7.34,209.66,209.62,7.44]
[1759114009054,7.34,209.68,209.61,1.39548812]
[1759114010162,7.34,209.68,209.62,7.44]
[1759114013159,7.34,209.72,209.63,1.39548812]
[1759114014563,4.2896,209.71,209.63,1.39548812]
[1759114017561,74.6131,209.79,209.67,9.10548812]
[1759114017864,7.91,209.75,209.67,9.10548812]
[1759114019562,7.91,209.75,209.69,1.39548812]
[1759114023761,9.30548812,209.78,209.69,7.71]
[1759114024366,7.91,209.75,209.69,7.71]
[1759114025569,7.91,209.75,209.68,1.39548812]
[1759114026365,7.91,209.75,209.66,120.7506]
[1759114026366,7.91,209.74,209.66,1.39548812]
[1759114026568,9.30548812,209.74,209.66,1.39548812]
[1759114027272,7.91,209.74,209.66,1.39548812]
[1759114027667,7.91,209.74,209.68,1.39548812]
[1759114028567,7.91,209.74,209.68,5.68568812]
[1759114030673,12.1984,209.77,209.69,7.71]
[1759114035877,7.91,209.77,209.7,1.39548812]
[1759114036870,7.91,209.77,209.71,7.83]
[1759114037675,7.91,209.77,209.71,12.1195]
[1759114037876,7.91,209.77,209.71,7.83]
[1759114038467,5.56533743,209.82,209.73,4.289]
[1759114038673,7.78,209.81,209.74,1.39548812]
[1759114039570,7.78,209.81,209.74,5.68428812]
[1759114040872,7.78,209.81,209.76,7.83]
[1759114041577,7.78,209.81,209.75,4.2887]
[1759114041977,7.78,209.81,209.77,7.83]
[1759114043680,7.78,209.85,209.78,1.39548812]
[1759114043979,7.78,209.85,209.77,7.83]
[1759114043980,7.78,209.85,209.8,1.39548812]
[1759114044382,7.78,209.85,209.81,7.77]
[1759114044679,1.39548812,209.9,209.81,7.77]
[1759114044880,7.44,209.89,209.81,7.77]
[1759114045376,7.44,209.89,209.82,1.39548812]
[1759114048084,1.39548812,209.9,209.82,15.77634099]
[1759114048283,7.44,209.89,209.82,15.77634099]
[1759114049685,7.44,209.89,209.82,27.83364099]
[1759114051285,20.41356,209.91,209.84,9.16548812]
[1759114051489,7.44,209.9,209.84,9.16548812]
[1759114053688,7.44,209.9,209.84,7.77]
[1759114053886,7.44,209.9,209.82,15.77634099]
[1759114055689,7.44,209.9,209.84,1.39548812]
[1759114056785,7.44,209.9,209.83,7.77]
[1759114057786,1.39548812,209.88,209.79,7.77]
[1759114057991,7.44,209.87,209.79,22.35729729]
[1759114058194,7.44,209.87,209.79,7.77]
[1759114058693,7.44,209.87,209.8,1.39548812]
[1759114060197,7.44,209.87,209.79,12.0578]
[1759114060390,7.44,209.87,209.81,7.77]
[1759114061502,7.44,209.9,209.81,7.77]
[1759114063297,7.44,209.9,209.79,126.75282016]
[1759114063298,7.44,209.9,209.79,13.93282016]
[1759114063495,7.44,209.88,209.78,7.77]
[1759114064099,7.44,209.84,209.78,7.77]
[1759114065101,4.2864,209.87,209.78,7.77]
[1759114065501,4.2864,209.87,209.78,22.28366621]
[1759114065702,4.2864,209.87,209.78,7.77]
[1759114066403,7.44,209.88,209.78,7.77]
[1759114067708,7.44,209.88,209.81,4.2874]
[1759114067900,7.44,209.88,209.78,7.77]
[1759114068602,7.44,209.88,209.78,21.78913613]
[1759114069005,11.7263,209.88,209.8,4.2876]
[1759114071405,11.7263,209.88,209.8,12.0576]
[1759114072106,11.7263,209.88,209.81,4.2874]
[1759114075108,7.44,209.88,209.81,4.2874]
[1759114075709,7.44,209.88,209.82,4.2872]
[1759114076009,7.44,209.88,209.82,12.2572]
[1759114082317,20.41356,209.91,209.83,4.287]
[1759114082529,7.28,209.9,209.81,7.97]
[1759114083318,7.28,209.9,209.85,4.2866]
[1759114083518,23.40796,209.91,209.85,4.2866]
[1759114084318,23.40796,209.91,209.84,7.97]
[1759114084614,23.40796,209.91,209.8,5.28691345]
[1759114084821,16.12796,209.91,209.8,67.15]
[1759114085121,7.28,209.89,209.8,7.97]
[1759114085718,7.28,209.84,209.77,12.2583]
[1759114086622,11.5671,209.84,209.77,12.2583]
[1759114087522,7.28,209.84,209.77,12.2583]
[1759114087722,7.28,209.84,209.78,4.2881]
[1759114088120,7.28,209.84,209.78,14.09202592]
[1759114088323,7.28,209.84,209.77,13.25691345]
[1759114089026,7.28,209.84,209.77,7.97]
[1759114089324,7.28,209.84,209.77,13.25691345]
[1759114089725,7.28,209.84,209.77,7.97]
[1759114090226,11.5671,209.84,209.77,7.97]
[1759114091716,11.5671,209.84,209.75,116.56]
[1759114091717,7.28,209.84,209.75,5.28691345]
[1759114091916,7.28,209.84,209.74,5.28691345]
[1759114092426,66.6808,209.86,209.72,541.95211435]
[1759114092427,7.21,209.79,209.73,5.28691345]
[1759114092626,7.21,209.79,209.7,5.28691345]
[1759114092831,7.21,209.79,209.72,7.48]
[1759114093126,7.21,209.79,209.72,11.7692]
[1759114093317,7.21,209.79,209.72,17.05611345]
[1759114094429,7.21,209.79,209.72,11.7692]
[1759114096031,7.21,209.79,209.72,26.08685162]
[1759114097831,11.4982,209.79,209.72,21.79765162]
[1759114098133,7.21,209.78,209.72,14.31765162]
[1759114098432,7.21,209.78,209.71,116.58]
[1759114100433,7.21,209.78,209.71,130.72533917]
[1759114101132,7.21,209.78,209.71,14.14533917]
[1759114101331,7.21,209.78,209.7,7.48]
[1759114101730,4.2884,209.77,209.7,7.48]
[1759114103628,11.4988,209.76,209.7,7.48]
[1759114105230,11.4988,209.76,209.7,21.91054934]
[1759114107232,4.289,209.75,209.7,21.91054934]
[1759114107436,7.89,209.74,209.7,21.91054934]
[1759114107632,4.2892,209.74,209.7,7.48]
[1759114107931,7.89,209.73,209.7,7.48]
[1759114108539,12.1792,209.74,209.7,7.48]
[1759114109437,4.2892,209.74,209.68,7.2]
[1759114109837,7.89,209.75,209.68,7.2]
[1759114110337,7.89,209.75,209.68,11.4901]
[1759114110837,12.1789,209.75,209.68,7.2]
[1759114111040,7.89,209.75,209.68,7.2]
[1759114111435,4.2892,209.74,209.68,7.2]
[1759114111941,7.89,209.75,209.68,7.2]
[1759114112632,4.2893,209.73,209.68,7.2]
[1759114112835,66.7123,209.76,209.65,11.4907]
[1759114113038,66.7162,209.75,209.67,14.43117011]
[1759114113228,66.7203,209.74,209.67,14.43117011]
[1759114113427,7.89,209.73,209.67,14.43117011]
[1759114113742,7.89,209.73,209.65,7.2]
[1759114114335,12.18,209.7,209.6,395.56691345]
[1759114114630,7.89,209.74,209.63,7.2]
[1759114115643,4.2894,209.72,209.64,4.2909]
[1759114115940,4.2894,209.72,209.65,7.2]
[1759114116439,7.89,209.69,209.65,7.2]
[1759114116635,4.2898,209.7,209.65,7.2]
[1759114116835,4.2898,209.7,209.64,4.2909]
[1759114117445,4.2898,209.7,209.65,7.2]
[1759114118033,12.1798,209.7,209.64,4.2909]
[1759114118637,12.1798,209.7,209.65,7.2]
[1759114118844,12.1798,209.7,209.64,4.2909]
[1759114119744,12.1798,209.7,209.65,7.2]
[1759114119942,12.1798,209.7,209.64,7.2]
[1759114121148,4.2901,209.69,209.64,7.2]
[1759114121346,7.89,209.71,209.63,14.24227238]
[1759114121654,7.89,209.71,209.6,474.8718]
[1759114121945,4.2906,209.67,209.6,474.8718]
[1759114122344,4.2906,209.67,209.61,1.39718911]
[1759114122646,4.2906,209.67,209.61,15.59646919]
[1759114125146,7.89,209.65,209.61,21.39928008]
[1759114125848,7.89,209.65,209.58,6.51943288]
[1759114125849,12.181,209.65,209.58,6.51943288]
[1759114126044,12.181,209.65,209.58,137.43657573]
[1759114126351,12.181,209.65,209.58,123.15943288]
[1759114126550,12.181,209.65,209.59,7.2]
[1759114126749,7.89,209.65,209.59,7.2]
[1759114129152,4.2908,209.66,209.59,7.2]
[1759114129453,1.39718911,209.66,209.58,14.9820367]
[1759114129856,12.1811,209.64,209.58,14.9820367]
[1759114134954,12.1811,209.64,209.58,14.15199293]
[1759114134955,7.37,209.63,209.58,14.15199293]
[1759114135253,7.37,209.63,209.57,7.2]
[1759114136151,1.39718911,209.62,209.56,116.64]
[1759114136350,7.37,209.61,209.56,116.64]
[1759114136554,1.39718911,209.6,209.56,116.64]
[1759114136754,7.37,209.59,209.56,116.64]
[1759114136955,7.37,209.59,209.53,7.44]
[1759114138051,1.39718911,209.58,209.52,116.66]
[1759114138257,7.37,209.57,209.52,116.66]
[1759114138857,4.2927,209.56,209.52,116.66]
[1759114139051,7.37,209.55,209.52,116.66]
[1759114139447,7.37,209.55,209.52,124.1]
[1759114139651,8.76718911,209.57,209.53,7.44]
[1759114139850,4.2923,209.58,209.52,116.66]
[1759114140050,4.2923,209.58,209.53,7.44]
[1759114140262,11.6623,209.58,209.52,124.1]
[1759114140654,1.39718911,209.59,209.53,7.44]
[1759114141361,4.2924,209.58,209.52,116.66]
[1759114141550,8.76718911,209.59,209.52,116.66]
[1759114142255,8.76718911,209.59,209.51,7.44]
[1759114142555,11.6627,209.56,209.5,130.98839307]
[1759114142858,11.6627,209.56,209.5,124.1]
[1759114143654,4.2922,209.59,209.51,7.44]
[1759114143856,7.37,209.57,209.51,7.44]
[1759114144349,7.37,209.55,209.5,130.92828352]
[1759114144553,1.39718911,209.56,209.5,116.66]
[1759114144951,7.37,209.55,209.5,116.66]
[1759114145162,8.76718911,209.56,209.5,116.66]
[1759114145558,4.2932,209.54,209.5,116.66]
[1759114145757,11.6632,209.54,209.5,124.1]
[1759114145954,7.37,209.55,209.46,7.44]
[1759114146160,8.76718911,209.52,209.46,7.44]
[1759114146662,8.76718911,209.52,209.46,21.91142007]
[1759114147564,4.2938,209.51,209.46,21.91142007]
[1759114147765,4.2938,209.51,209.47,7.44]
[1759114147962,11.6638,209.51,209.47,7.44]
[1759114148356,11.6638,209.51,209.45,7.44]
[1759114150366,11.6638,209.51,209.45,21.5341882]
[1759114151160,11.6638,209.51,209.45,22.93137731]
[1759114151559,7.37,209.51,209.45,22.93137731]
[1759114151761,7.37,209.51,209.45,27.22627731]
[1759114152063,7.37,209.51,209.43,116.68]
[1759114152064,7.37,209.5,209.43,116.68]
[1759114152257,11.9147,209.47,209.43,124.43]
[1759114152965,7.62,209.46,209.43,124.43]
[1759114153370,7.62,209.49,209.43,124.43]
[1759114154566,4.2943,209.48,209.43,124.43]
[1759114154868,7.62,209.47,209.44,7.75]
[1759114155268,4.2947,209.46,209.41,7.75]
[1759114155468,4.2947,209.46,209.4,1.39718911]
[1759114155469,4.2947,209.46,209.4,9.14718911]
[1759114155669,4.2947,209.46,209.4,23.31488681]
[1759114155869,7.62,209.47,209.4,9.14718911]
[1759114156076,7.62,209.55,209.45,7.75]
[1759114156369,7.62,209.53,209.45,7.75]
[1759114156571,7.62,209.51,209.45,7.75]
[1759114156962,7.62,209.51,209.42,9.14718911]
[1759114157170,4.2943,209.49,209.42,9.14718911]
[1759114157366,7.62,209.49,209.42,7.75]
[1759114157768,11.9147,209.46,209.39,89.37672969]
[1759114157968,11.9147,209.46,209.39,22.87672969]
[1759114158470,11.9151,209.44,209.4,7.75]
[1759114158766,11.9151,209.44,209.39,15.12672969]
[1759114159067,11.9151,209.44,209.4,7.75]
[1759114159272,4.2951,209.44,209.4,7.75]
[1759114159967,4.2951,209.44,209.41,7.75]
[1759114160272,11.9155,209.42,209.39,15.12672969]
[1759114160571,11.9155,209.42,209.34,4.2971]
[1759114160572,9.01718911,209.46,209.38,9.14718911]
[1759114160776,7.62,209.46,209.38,9.14718911]
[1759114160966,7.62,209.46,209.38,7.75]
[1759114161271,4.295,209.45,209.39,1.39718911]
[1759114161482,7.62,209.46,209.4,7.75]
[1759114161772,7.62,209.46,209.42,7.75]
[1759114162367,11.9148,209.46,209.42,7.75]
[1759114164272,4.2951,209.45,209.42,7.75]
[1759114164572,11.6151,209.45,209.42,7.75]
[1759114165870,7.32,209.53,209.41,1.39718911]
[1759114166068,7.32,209.53,209.46,7.4]
[1759114167368,7.32,209.53,209.47,1.39718911]
[1759114167676,9.99457644,209.57,209.48,7.4]
[1759114168273,12.88998733,209.57,209.5,7.4]
[1759114168572,12.88998733,209.57,209.42,66.8194]
[1759114168573,1.27738733,209.57,209.52,7.4]
[1759114168773,1.27738733,209.57,209.51,1.39718911]
[1759114168975,1.27738733,209.57,209.52,7.4]
[1759114169379,1.27738733,209.57,209.51,1.39718911]
[1759114169779,1.27738733,209.57,209.52,7.4]
[1759114169976,1.27738733,209.57,209.51,1.39718911]
[1759114170383,1.27738733,209.57,209.49,4.2939]
[1759114170384,7.32,209.61,209.55,1.39718911]
[1759114170682,66.7451,209.66,209.48,103.6579]
[1759114170683,7.32,209.64,209.57,1.39718911]
[1759114170871,4.2912,209.63,209.5,4.2939]
[1759114171180,11.6112,209.63,209.56,1.39718911]
[1759114171684,11.6112,209.63,209.54,1.39718911]
[1759114172576,1.39718911,209.62,209.53,7.4]
[1759114173370,5.68878911,209.62,209.53,7.4]
[1759114174077,1.39718911,209.59,209.53,7.4]
[1759114177480,7.32,209.57,209.53,7.4]
[1759114177876,7.32,209.57,209.5,7.4]
[1759114178076,4.2923,209.58,209.5,7.4]
[1759114181082,1.39718911,209.56,209.5,7.4]
[1759114181283,7.32,209.55,209.47,7.4]
[1759114181484,8.71718911,209.53,209.47,7.4]
[1759114182387,13.01048911,209.53,209.44,39.26]
[1759114183084,1.39718911,209.5,209.44,39.26]
[1759114184187,7.32,209.52,209.44,39.26]
[1759114184686,4.2939,209.51,209.44,39.26]
[1759114185083,4.2939,209.51,209.45,7.4]
[1759114185589,4.2933,209.54,209.45,7.4]
[1759114186484,7.32,209.55,209.45,7.4]
[1759114187090,7.32,209.55,209.47,4.2944]
[1759114187390,7.32,209.55,209.48,7.4]
[1759114189787,11.613,209.55,209.45,4.2949]
[1759114190092,7.32,209.52,209.44,7.4]
[1759114190690,4.2938,209.51,209.44,7.4]
[1759114196587,4.2941,209.5,209.44,7.4]
[1759114198189,7.38,209.49,209.42,7.47]
[1759114202890,11.6742,209.49,209.42,7.47]
[1759114204391,7.38,209.53,209.42,66.8197]
[1759114204689,7.38,209.58,209.45,7.47]
[1759114204887,7.38,209.58,209.47,7.47]
[1759114205692,4.2929,209.55,209.48,4.2943]
[1759114205886,66.8056,209.47,209.39,1.345e-05]
[1759114206093,7.38,209.39,209.3,7.47]
[1759114206293,4.2964,209.38,209.3,21.77626898]
[1759114206592,2.1870361,209.43,209.3,7.47]
[1759114206796,7.38,209.43,209.3,7.47]
[1759114207391,7.38,209.41,209.3,7.47]
[1759114208699,4.296,209.4,209.3,7.47]
[1759114209290,4.296,209.4,209.3,21.4782814]
[1759114211996,4.2953,209.44,209.32,7.47]
[1759114213498,4.2955,209.42,209.32,7.47]
[1759114214702,4.2955,209.42,209.32,11.7675]
[1759114219905,4.2955,209.42,209.33,7.89]
[1759114220108,7.8,209.43,209.33,7.89]
[1759114220508,7.8,209.43,209.35,7.89]
[1759114227909,1.29287637,209.46,209.31,66.8541]
[1759114227910,9.06287637,209.46,209.37,7.78]
[1759114229610,13.35777637,209.46,209.37,7.78]
[1759114232209,7.77,209.44,209.34,4.2971]
[1759114232509,9.9570361,209.42,209.31,65.0]
[1759114232809,7.77,209.37,209.3,14.33784946]
[1759114233018,9.9570361,209.41,209.31,7.78]
[1759114233814,4.2961,209.4,209.31,7.78]
[1759114234115,7.77,209.39,209.31,7.78]